fUSD/lending_fUSD_20260329
["ID","MTS","AMOUNT","RATE_DAILY","PERIOD"]
[419046672,1774809033120,-5000.0,0.0001052,2]
[419046673,1774809033130,-4130.80765112,0.0001052,2]
[419046674,1774809033140,-500.0,0.00010523,2]
[419046675,1774809033150,-500.0,0.00010523,2]
[419046676,1774809033160,-500.0,0.00010523,2]
[419046677,1774809033170,-500.0,0.00010523,2]
[419046678,1774809033180,-500.0,0.00010523,2]
[419046679,1774809033190,-500.0,0.00010523,2]
[419046680,1774809033199,-500.0,0.00010523,2]
[419046681,1774809033209,-500.0,0.00010523,2]
[419046682,1774809033219,-500.0,0.00010523,2]
[419046683,1774809033228,-500.0,0.00010523,2]
[419046684,1774809033238,-500.0,0.00010523,2]
[419046685,1774809033247,-200.0,0.00010523,2]
[419046686,1774809033257,-500.0,0.00010523,2]
[419046687,1774809033267,-500.0,0.00010523,2]
[419046688,1774809033277,-500.0,0.00010523,2]
[419046689,1774809033286,-151.0,0.00010523,2]
[419046690,1774809033296,-500.0,0.00010523,2]
[419046691,1774809033306,-151.0,0.00010523,2]
[419046692,1774809033846,-230.85837694,0.00010523,2]
[419046693,1774809033856,-151.0,0.00010523,2]
[419046694,1774809033866,-151.0,0.00010523,2]
[419046695,1774809033876,-151.0,0.00010523,2]
[419046696,1774809033886,-151.0,0.00010523,2]
[419046697,1774809033897,-151.0,0.00010523,2]
[419046698,1774809033908,-151.0,0.00010523,2]
[419046699,1774809033918,-151.0,0.00010523,2]
[419046700,1774809033928,-151.0,0.00010523,2]
[419046701,1774809033938,-151.0,0.00010523,2]
[419046702,1774809033947,-151.0,0.00010523,2]
[419046703,1774809033957,-151.0,0.00010523,2]
[419046704,1774809033967,-151.0,0.00010523,2]
[419046705,1774809033977,-151.0,0.00010523,2]
[419046706,1774809033987,-151.0,0.00010523,2]
[419046707,1774809033998,-151.0,0.00010523,2]
[419046708,1774809034007,-151.0,0.00010523,2]
[419046709,1774809034016,-151.0,0.00010523,2]
[419046710,1774809034026,-151.0,0.00010523,2]
[419046711,1774809034036,-151.0,0.00010523,2]
[419046712,1774809034045,-151.0,0.00010523,2]
[419046713,1774809034055,-151.0,0.00010523,2]
[419046714,1774809034064,-151.0,0.00010523,2]
[419046715,1774809034075,-151.0,0.00010523,2]
[419046716,1774809034085,-151.0,0.00010523,2]
[419046717,1774809034095,-1386.78395259,0.00010523,2]
[419046718,1774809034105,-151.0,0.00010523,2]
[419046719,1774809034115,-151.0,0.00010523,2]
[419046720,1774809034124,-151.0,0.00010523,2]
[419046721,1774809034135,-151.0,0.00010523,2]
[419046722,1774809034145,-151.0,0.00010523,2]
[419046723,1774809034155,-151.0,0.00010523,2]
[419046724,1774809034165,-154.08581197,0.00010523,2]
[419046725,1774809034175,-705.11,0.00010523,2]
[419046726,1774809034184,-3882.684,0.00010525,2]
[419046727,1774809034193,-235.808,0.00010525,2]
[419046728,1774809034203,-1080.18049598,0.00010528,3]
[419046729,1774809034213,-204.07600257,0.00010528,3]
[419046730,1774809034223,-255975.8541719,0.00010529,2]
[419046731,1774809034238,-46118.95522888,0.00010529,2]
[419046732,1774809034250,-94653.40984122,0.00010529,2]
[419046733,1774809034268,-1254.41808677,0.00010529,2]
[419046734,1774809034280,-15436.47827363,0.00010529,2]
[419046735,1774809034386,-1273.8588951,0.00010529,2]
[419046738,1774809037665,-3998.948627,0.00010529,2]
[419046739,1774809037724,-61362.03746748,0.00010529,2]
[419046740,1774809037891,-104910.70836128,0.00010529,2]
[419046741,1774809038003,-429652.57249281,0.00010529,2]
[419046742,1774809038013,-2946.63,0.00010571,2]
[419046743,1774809038024,-500.0,0.00010573,2]
[419046744,1774809038035,-500.0,0.00010573,2]
[419046745,1774809038044,-370.62839673,0.00010573,2]
[419046746,1774809038055,-500.0,0.00010573,2]
[419046748,1774809038064,-500.0,0.00010573,2]
[419046750,1774809038075,-166.66,0.00010593,2]
[419046752,1774809038085,-154.0,0.00010607,2]
[419046753,1774809038095,-355.0,0.00010628,2]
[419046754,1774809038104,-1000.0,0.00010629,2]
[419046755,1774809038115,-2600.0,0.00010642,2]
[419046756,1774809038125,-3046.33,0.00010669,2]
[419046757,1774809038135,-500.0,0.00010696,2]
[419046758,1774809038145,-705.11,0.00010797,2]
[419046759,1774809038154,-1800.0,0.000108,3]
[419046760,1774809038164,-1072.0,0.00010801,2]
[419046761,1774809038174,-2700.0,0.00010813,2]
[419046762,1774809038184,-213.0,0.00010822,2]
[419046763,1774809038194,-537.14,0.00010826,2]
[419046764,1774809038204,-2504.86,0.00010841,2]
[419046765,1774809038214,-1427.0,0.00010844,2]
[419046766,1774809038224,-877.0,0.00010865,2]
[419046767,1774809038235,-1473.0,0.00010887,2]
[419046768,1774809038246,-150.0,0.000109,2]
[419046769,1774809038256,-3600.0,0.000109,3]
[419046770,1774809038266,-9606.51051487,0.000109,2]
[419046771,1774809038276,-592.0,0.00010908,2]
[419046772,1774809038287,-339.50041022,0.0001091,2]
[419046773,1774809038297,-1158.0,0.0001093,2]
[419046774,1774809038307,-166.66,0.00010931,2]
[419046775,1774809038317,-3082.43,0.00010932,2]
[419046776,1774809038327,-1261.0,0.00010951,2]
[419046777,1774809038337,-500.0,0.00010959,2]
[419046778,1774809038347,-166.66,0.00010959,2]
[419046779,1774809038357,-168.31887754,0.00010959,2]
[419046780,1774809038367,-2000.0,0.00010967,2]
[419046781,1774809038378,-1712.0,0.00010973,2]
[419046782,1774809038388,-1353.0,0.00010995,2]
[419046783,1774809038399,-381.5599245,0.00010999,2]
[419046784,1774809038409,-3282.16832312,0.00011,2]
[419046785,1774809038424,-850.0,0.00011016,2]
[419046786,1774809038434,-555.0,0.00011038,2]
[419046787,1774809038444,-2500.0,0.00011055,2]
[419046788,1774809038455,-2945.54,0.00011056,2]
[419046789,1774809038466,-1174.0,0.00011059,2]
[419046790,1774809038476,-1400.0,0.00011061,2]
[419046791,1774809038486,-166.66,0.00011068,2]
[419046792,1774809038496,-200.0,0.00011071,2]
[419046793,1774809038506,-1438.09495884,0.00011071,2]
[419046794,1774809038516,-705.11,0.00011071,2]
[419046795,1774809038526,-394.0,0.00011081,2]
[419046796,1774809038536,-25364.65554646,0.00011099,2]
[419046797,1774809038546,-25364.65554642,0.00011099,2]
[419046798,1774809038556,-1000.0,0.00011121,2]
[419046799,1774809038566,-1045.4146401,0.00011121,2]
[419046800,1774809038576,-1000.0,0.00011121,2]
[419046801,1774809038586,-1000.0,0.00011121,2]
[419046802,1774809038597,-9606.5105148,0.00011122,2]
[419046803,1774809038607,-166.66,0.00011178,2]
[419046804,1774809038617,-250.0,0.0001121,2]
[419046805,1774809038627,-500.0,0.00011215,2]
[419046806,1774809038639,-500.0,0.00011215,2]
[419046807,1774809038649,-171.50157608,0.00011215,2]
[419046808,1774809038658,-500.0,0.00011215,2]
[419046809,1774809038669,-3400.0,0.00011266,2]
[419046810,1774809038679,-2414.0,0.00011268,2]
[419046811,1774809038689,-166.66,0.0001127,2]
[419046812,1774809038699,-1680.0,0.00011276,2]
[419046813,1774809038709,-166.66,0.00011288,2]
[419046814,1774809038719,-255.0,0.00011333,2]
[419046815,1774809038729,-1194.68651896,0.00011341,2]
[419046816,1774809038740,-420.0,0.00011342,2]
[419046817,1774809038750,-420.0,0.00011343,2]
[419046818,1774809038759,-420.0,0.00011343,2]
[419046819,1774809038770,-420.0,0.00011343,2]
[419046820,1774809038779,-1680.0,0.00011344,2]
[419046821,1774809038789,-705.11,0.00011345,2]
[419046822,1774809038799,-166.66,0.00011397,2]
[419046823,1774809038809,-2170.0,0.00011461,2]
[419046824,1774809038819,-1700.0,0.00011461,2]
[419046825,1774809038828,-193.0,0.00011465,2]
[419046826,1774809038838,-370.663821,0.00011474,2]
[419046827,1774809038848,-2198.77,0.00011507,2]
[419046828,1774809038857,-166.66,0.00011507,2]
[419046829,1774809038868,-584.55025158,0.0001157,2]
[419046830,1774809038885,-5000.0,0.0001157,2]
[419046831,1774809038900,-166.66,0.00011608,2]
[419046832,1774809038911,-200.0,0.00011619,2]
[419046833,1774809038922,-1491.30447232,0.00011619,2]
[419046834,1774809038933,-705.11,0.00011619,2]
[419046835,1774809038943,-25364.65554642,0.00011627,2]
[419046836,1774809038953,-1830.21,0.00011648,2]
[419046837,1774809038963,-500.0,0.00011668,2]
[419046838,1774809038974,-1001.58195524,0.00011668,2]
[419046839,1774809038985,-22074.0,0.000117,2]
[419046840,1774809038997,-2224.86,0.00011708,2]
[419046841,1774809039007,-1000.0,0.00011763,2]
[419046842,1774809039018,-1000.0,0.00011763,2]
[419046843,1774809039027,-502.67280258,0.00011763,2]
[419046844,1774809039037,-3088.865157,0.00011845,2]
[419046845,1774809039047,-2429.533311,0.00011845,2]
[419046846,1774809039057,-4244.264664,0.00011845,2]
[419046847,1774809039067,-705.11,0.00011893,2]
[419046848,1774809039076,-9606.5105148,0.00011919,2]
[419046849,1774809039086,-166.66,0.00011947,2]
[419046850,1774809039096,-2366.19845948,0.00011987,2]
[419046851,1774809039107,-208.7575855,0.00011987,2]
[419046852,1774809039116,-200.0,0.00012,2]
[419046853,1774809039127,-5534.0,0.00012,3]
[419046854,1774809039137,-94739.83,0.00012087,2]
[419046855,1774809039146,-5081.68,0.00012087,2]
[419046856,1774809039156,-9999.99,0.00012087,2]
[419046857,1774809039166,-1159.87,0.00012087,2]
[419046858,1774809039177,-14101.42,0.00012087,2]
[419046859,1774809039187,-8455.71,0.00012087,2]
[419046860,1774809039198,-23348.11,0.00012087,2]
[419046861,1774809039209,-517.77,0.00012087,2]
[419046862,1774809039219,-2267.62,0.00012087,2]
[419046863,1774809039229,-150.99,0.00012087,2]
[419046864,1774809039239,-499.99,0.00012087,2]
[419046865,1774809039250,-9999.99,0.00012087,2]
[419046866,1774809039260,-999.99,0.00012087,2]
[419046867,1774809039270,-9999.99,0.00012087,2]
[419046868,1774809039280,-2997.56,0.00012087,2]
[419046869,1774809039290,-150.99,0.00012087,2]
[419046870,1774809039300,-1619.68,0.00012087,2]
[419046871,1774809039310,-1901.65,0.00012087,2]
[419046872,1774809039319,-9999.99,0.00012087,2]
[419046873,1774809039329,-299.99,0.00012087,2]
[419046874,1774809039341,-1548.82,0.00012087,2]
[419046875,1774809039351,-77037.16,0.00012087,2]
[419046876,1774809039361,-9999.99,0.00012087,2]
[419046877,1774809039372,-200.0,0.00012167,2]
[419046878,1774809039382,-1546.48273779,0.00012167,2]
[419046879,1774809039397,-705.11,0.00012167,2]
[419046880,1774809039407,-2000.0,0.00012185,2]
[419046881,1774809039418,-196.9129,0.000122,2]
[419046882,1774809039428,-5534.0,0.000122,5]
[419046883,1774809039438,-25364.65554642,0.00012232,2]
[419046884,1774809039449,-1194.68651896,0.00012253,2]
[419046885,1774809039459,-500.0,0.00012311,2]
[419046886,1774809039471,-2351.0,0.00012404,2]
[419046887,1774809039481,-705.11,0.00012441,2]
[419046888,1774809039491,-433.0,0.00012448,2]
[419046889,1774809039502,-587.0,0.00012472,2]
[419046890,1774809039512,-587.0,0.00012473,2]
[419046891,1774809039522,-221.0,0.00012473,2]
[419046892,1774809039532,-180.0,0.00012473,2]
[419046893,1774809039544,-1659.477998,0.0001258,2]
[419046894,1774809039555,-1050.56056,0.0001258,2]
[419046895,1774809039566,-200.0,0.00012715,2]
[419046896,1774809039576,-1603.70259909,0.00012715,2]
[419046897,1774809039586,-9606.5105148,0.00012715,2]
[419046898,1774809039597,-537.14,0.00012741,2]
[419046899,1774809039607,-25364.65554642,0.00012837,2]
[419046900,1774809039618,-5400.0,0.000129,4]
[419046901,1774809039628,-255410.0572669,0.00012961,2]
[419046902,1774809039639,-12417.0802399,0.00012961,2]
[419046903,1774809039649,-1194.68651896,0.00013165,2]
[419046904,1774809039659,-16522.86,0.0001317,2]
[419046905,1774809039669,-156.86,0.0001317,2]
[419046906,1774809039679,-2750.6,0.00013175,2]
[419046907,1774809039689,-2750.6,0.00013175,2]
[419046908,1774809039699,-2750.6,0.00013175,2]
[419046909,1774809039708,-2750.6,0.00013175,2]
[419046910,1774809039718,-2750.6,0.00013175,2]
[419046911,1774809039729,-2750.6,0.00013175,2]
[419046912,1774809039739,-2750.6,0.00013175,2]
[419046913,1774809039750,-2750.6,0.00013175,2]
[419046914,1774809039761,-2750.6,0.00013175,2]
[419046915,1774809039771,-151.0,0.00013262,2]
[419046916,1774809039781,-200.0,0.00013263,2]
[419046918,1774809039791,-1663.03959526,0.00013263,2]
[419046919,1774809039801,-165.69,0.00013263,2]
[419046920,1774809039811,-182.9,0.00013385,2]
[419046921,1774809039820,-2000.0,0.00013404,2]
[419046922,1774809039830,-3240.0,0.00013425,2]
[419046923,1774809039840,-25364.65554642,0.00013442,2]
[419046924,1774809039851,-381.55992449,0.0001345,2]
[419046925,1774809039861,-250.0,0.00013466,2]
[419046926,1774809039871,-9606.5105148,0.00013511,2]
[419046927,1774809039881,-258.498,0.000136,2]
[419046928,1774809039891,-3292.0,0.00013644,2]
[419046929,1774809039902,-736.0,0.00013666,2]
[419046930,1774809039916,-500.0,0.00013695,2]
[419046931,1774809039926,-500.0,0.00013695,2]
[419046932,1774809039936,-500.0,0.00013695,2]
[419046933,1774809039946,-500.0,0.00013695,2]
[419046934,1774809039956,-500.0,0.00013695,2]
[419046935,1774809039965,-500.0,0.00013695,2]
[419046936,1774809039976,-500.0,0.00013695,2]
[419046937,1774809039986,-500.0,0.00013695,2]
[419046938,1774809039996,-500.0,0.00013695,2]
[419046939,1774809040006,-500.0,0.00013695,2]
[419046940,1774809040016,-500.0,0.00013695,2]
[419046941,1774809040027,-500.0,0.00013695,2]
[419046942,1774809040036,-500.0,0.00013695,2]
[419046943,1774809040046,-500.0,0.00013695,2]
[419046944,1774809040056,-500.0,0.00013695,2]
[419046945,1774809040067,-500.0,0.00013695,2]
[419046946,1774809040077,-500.0,0.00013695,2]
[419046947,1774809040087,-580.96645017,0.00013695,2]
[419046948,1774809040099,-500.0,0.00013695,2]
[419046949,1774809040110,-500.0,0.00013695,2]
[419046950,1774809040120,-761.0,0.00013695,2]
[419046951,1774809040130,-500.0,0.00013695,2]
[419046952,1774809040140,-500.0,0.00013695,2]
[419046953,1774809040151,-761.0,0.00013695,2]
[419046954,1774809040161,-500.0,0.00013695,2]
[419046955,1774809040171,-221.42926466,0.00013695,2]
[419046956,1774809040181,-761.0,0.00013695,2]
[419046957,1774809040193,-500.0,0.00013695,2]
[419046958,1774809040203,-761.0,0.00013695,2]
[419046959,1774809040213,-500.0,0.00013695,2]
[419046960,1774809040223,-761.0,0.00013695,2]
[419046961,1774809040234,-500.0,0.00013695,2]
[419046962,1774809040245,-761.0,0.00013695,2]
[419046963,1774809040256,-761.0,0.00013695,2]
[419046964,1774809040266,-500.0,0.00013695,2]
[419046965,1774809040277,-500.0,0.00013695,2]
[419046966,1774809040287,-761.0,0.00013695,2]
[419046967,1774809040297,-500.0,0.00013695,2]
[419046968,1774809040307,-500.0,0.00013695,2]
[419046969,1774809040317,-761.0,0.00013695,2]
[419046970,1774809040327,-500.0,0.00013695,2]
[419046971,1774809040338,-761.0,0.00013695,2]
[419046972,1774809040347,-500.0,0.00013695,2]
[419046973,1774809040357,-761.0,0.00013695,2]
[419046974,1774809040367,-500.0,0.00013695,2]
[419046975,1774809040378,-500.0,0.00013695,2]
[419046976,1774809040388,-219.10448352,0.00013695,2]
[419046977,1774809040398,-500.0,0.00013695,2]
[419046978,1774809040408,-761.0,0.00013695,2]
[419046979,1774809040418,-500.0,0.00013695,2]
[419046980,1774809040428,-761.0,0.00013695,2]
[419046981,1774809040437,-500.0,0.00013695,2]
[419046982,1774809040446,-761.0,0.00013695,2]
[419046983,1774809040456,-500.0,0.00013695,2]
[419046984,1774809040466,-500.0,0.00013695,2]
[419046985,1774809040476,-761.0,0.00013695,2]
[419046986,1774809040486,-500.0,0.00013695,2]
[419046987,1774809040496,-500.0,0.00013695,2]
[419046988,1774809040506,-761.0,0.00013695,2]
[419046989,1774809040515,-500.0,0.00013695,2]
[419046990,1774809040525,-500.0,0.00013695,2]
[419046991,1774809040536,-500.0,0.00013695,2]
[419046992,1774809040546,-500.0,0.00013695,2]
[419046993,1774809040558,-414.92841658,0.00013695,2]
[419046994,1774809040569,-500.0,0.00013695,2]
[419046995,1774809040579,-761.0,0.00013695,2]
[419046996,1774809040589,-500.0,0.00013695,2]
[419046997,1774809040602,-500.0,0.00013695,2]
[419046998,1774809040612,-500.0,0.00013695,2]
[419046999,1774809040622,-761.0,0.00013695,2]
[419047000,1774809040633,-500.0,0.00013695,2]
[419047001,1774809040642,-500.0,0.00013695,2]
[419047002,1774809040652,-500.0,0.00013695,2]
[419047003,1774809040662,-500.0,0.00013695,2]
[419047004,1774809040674,-500.0,0.00013695,2]
[419047005,1774809040684,-500.0,0.00013695,2]
[419047006,1774809040695,-761.0,0.00013695,2]
[419047007,1774809040705,-500.0,0.00013695,2]
[419047008,1774809040716,-500.0,0.00013695,2]
[419047009,1774809040726,-583.94965812,0.00013695,2]
[419047011,1774809040736,-500.0,0.00013695,2]
[419047012,1774809040746,-761.0,0.00013695,2]
[419047013,1774809040756,-509.0,0.00013695,2]
[419047014,1774809040767,-761.0,0.00013695,2]
[419047015,1774809040777,-761.0,0.00013695,2]
[419047016,1774809040787,-761.0,0.00013695,2]
[419047017,1774809040797,-781.31329962,0.00013695,2]
[419047018,1774809041305,-151.0,0.00013697,2]
[419047019,1774809041316,-500.0,0.00013698,2]
[419047020,1774809041326,-500.0,0.00013698,2]
[419047021,1774809041335,-500.0,0.00013698,2]
[419047022,1774809041345,-500.0,0.00013698,2]
[419047023,1774809041355,-173.34235598,0.00013698,2]
[419047024,1774809041365,-500.0,0.00013698,2]
[419047025,1774809041375,-500.0,0.00013698,2]
[419047026,1774809041384,-500.0,0.00013698,2]
[419047027,1774809041396,-500.0,0.00013698,2]
[419047028,1774809041406,-500.0,0.00013698,2]
[419047029,1774809041416,-500.0,0.00013698,2]
[419047030,1774809041425,-500.0,0.00013698,2]
[419047031,1774809041440,-500.0,0.00013698,2]
[419047032,1774809041451,-500.0,0.00013698,2]
[419047033,1774809041461,-500.0,0.00013698,2]
[419047034,1774809041471,-500.0,0.00013698,2]
[419047035,1774809041482,-500.0,0.00013698,2]
[419047036,1774809041492,-500.0,0.00013698,2]
[419047037,1774809041503,-500.0,0.00013698,2]
[419047038,1774809041513,-500.0,0.00013698,2]
[419047039,1774809041524,-500.0,0.00013698,2]
[419047040,1774809041534,-500.0,0.00013698,2]
[419047041,1774809041544,-500.0,0.00013698,2]
[419047042,1774809041554,-500.0,0.00013698,2]
[419047043,1774809041565,-500.0,0.00013698,2]
[419047044,1774809041575,-500.0,0.00013698,2]
[419047045,1774809041584,-500.0,0.00013698,2]
[419047046,1774809041595,-500.0,0.00013698,2]
[419047047,1774809041605,-500.0,0.00013698,2]
[419047048,1774809041616,-500.0,0.00013698,2]
[419047049,1774809041626,-500.0,0.00013698,2]
[419047050,1774809041637,-504.98451162,0.00013698,2]
[419047051,1774809041647,-500.0,0.00013698,2]
[419047052,1774809041658,-500.0,0.00013698,2]
[419047053,1774809041669,-500.0,0.00013698,2]
[419047054,1774809041679,-500.0,0.00013698,2]
[419047055,1774809041689,-500.0,0.00013698,2]
[419047056,1774809041699,-500.0,0.00013698,2]
[419047057,1774809041710,-500.0,0.00013698,2]
[419047058,1774809041720,-500.0,0.00013698,2]
[419047059,1774809041730,-500.0,0.00013698,2]
[419047060,1774809041740,-500.0,0.00013698,2]
[419047061,1774809041751,-500.0,0.00013698,2]
[419047062,1774809041762,-500.0,0.00013698,2]
[419047063,1774809041771,-500.0,0.00013698,2]
[419047064,1774809041781,-500.0,0.00013698,2]
[419047065,1774809041792,-500.0,0.00013698,2]
[419047066,1774809041802,-500.0,0.00013698,2]
[419047067,1774809041813,-500.0,0.00013698,2]
[419047068,1774809041823,-500.0,0.00013698,2]
[419047069,1774809041833,-500.0,0.00013698,2]
[419047070,1774809041842,-315.34588043,0.00013698,2]
[419047071,1774809041852,-500.0,0.00013698,2]
[419047072,1774809041862,-500.0,0.00013698,2]
[419047073,1774809041873,-500.0,0.00013698,2]
[419047074,1774809041883,-500.0,0.00013698,2]
[419047075,1774809041893,-500.0,0.00013698,2]
[419047076,1774809041904,-500.0,0.00013698,2]
[419047077,1774809041914,-1028.23,0.00013698,2]
[419047078,1774809041924,-1028.23,0.00013698,2]
[419047079,1774809041934,-1028.23,0.00013698,2]
[419047080,1774809041949,-1028.23,0.00013698,2]
[419047081,1774809041959,-1028.23,0.00013698,2]
[419047082,1774809041969,-1028.23,0.00013698,2]
[419047083,1774809041979,-1028.23,0.00013698,2]
[419047084,1774809041989,-1028.23,0.00013698,2]
[419047085,1774809042001,-1028.23,0.00013698,2]
[419047086,1774809042011,-1028.23,0.00013698,2]
[419047087,1774809042021,-1028.23,0.00013698,2]
[419047088,1774809042031,-1028.23,0.00013698,2]
[419047089,1774809042042,-1028.23,0.00013698,2]
[419047090,1774809042052,-1028.23,0.00013698,2]
[419047091,1774809042062,-1028.23,0.00013698,2]
[419047092,1774809042072,-1028.23,0.00013698,2]
[419047093,1774809042083,-1028.23,0.00013698,2]
[419047094,1774809042092,-627.39,0.00013698,2]
[419047095,1774809042103,-627.39,0.00013698,2]
[419047096,1774809042113,-627.39,0.00013698,2]
[419047097,1774809042124,-627.39,0.00013698,2]
[419047098,1774809042133,-627.39,0.00013698,2]
[419047099,1774809042144,-627.39,0.00013698,2]
[419047100,1774809042154,-627.39,0.00013698,2]
[419047101,1774809042164,-627.39,0.00013698,2]
[419047102,1774809042174,-627.39,0.00013698,2]
[419047103,1774809042185,-627.39,0.00013698,2]
[419047104,1774809042195,-627.39,0.00013698,2]
[419047105,1774809042204,-627.39,0.00013698,2]
[419047106,1774809042216,-627.39,0.00013698,2]
[419047107,1774809042226,-627.39,0.00013698,2]
[419047108,1774809042236,-627.39,0.00013698,2]
[419047109,1774809042246,-627.39,0.00013698,2]
[419047110,1774809042257,-627.39,0.00013698,2]
[419047111,1774809042267,-627.39,0.00013698,2]
[419047112,1774809042277,-627.39,0.00013698,2]
[419047113,1774809042288,-500.0,0.00013698,2]
[419047114,1774809042299,-500.0,0.00013698,2]
[419047115,1774809042309,-500.0,0.00013698,2]
[419047116,1774809042319,-500.0,0.00013698,2]
[419047117,1774809042330,-500.0,0.00013698,2]
[419047118,1774809042340,-500.0,0.00013698,2]
[419047119,1774809042351,-500.0,0.00013698,2]
[419047120,1774809042362,-500.0,0.00013698,2]
[419047121,1774809042372,-500.0,0.00013698,2]
[419047122,1774809042382,-500.0,0.00013698,2]
[419047123,1774809042392,-500.0,0.00013698,2]
[419047124,1774809042402,-500.0,0.00013698,2]
[419047125,1774809042412,-500.0,0.00013698,2]
[419047126,1774809042422,-500.0,0.00013698,2]
[419047127,1774809042432,-500.0,0.00013698,2]
[419047128,1774809042442,-500.0,0.00013698,2]
[419047129,1774809042452,-500.0,0.00013698,2]
[419047130,1774809042462,-500.0,0.00013698,2]
[419047131,1774809042472,-500.0,0.00013698,2]
[419047132,1774809042482,-500.0,0.00013698,2]
[419047133,1774809042492,-500.0,0.00013698,2]
[419047134,1774809042502,-500.0,0.00013698,2]
[419047135,1774809042512,-329.44503174,0.00013698,2]
[419047136,1774809042522,-500.0,0.00013698,2]
[419047137,1774809042531,-500.0,0.00013698,2]
[419047138,1774809042542,-500.0,0.00013698,2]
[419047139,1774809042552,-500.0,0.00013698,2]
[419047140,1774809042562,-500.0,0.00013698,2]
[419047141,1774809042573,-500.0,0.00013698,2]
[419047142,1774809042583,-500.0,0.00013698,2]
[419047143,1774809042594,-500.0,0.00013698,2]
[419047144,1774809042604,-500.0,0.00013698,2]
[419047145,1774809042615,-500.0,0.00013698,2]
[419047146,1774809042624,-500.0,0.00013698,2]
[419047147,1774809042634,-500.0,0.00013698,2]
[419047148,1774809042645,-500.0,0.00013698,2]
[419047149,1774809042655,-500.0,0.00013698,2]
[419047150,1774809042665,-500.0,0.00013698,2]
[419047151,1774809042675,-500.0,0.00013698,2]
[419047153,1774809042685,-381.48037858,0.00013698,2]
[419047155,1774809042696,-500.0,0.00013698,2]
[419047156,1774809042706,-500.0,0.00013698,2]
[419047157,1774809042718,-500.0,0.00013698,2]
[419047158,1774809042728,-500.0,0.00013698,2]
[419047159,1774809042739,-500.0,0.00013698,2]
[419047160,1774809042749,-500.0,0.00013698,2]
[419047161,1774809042759,-500.0,0.00013698,2]
[419047162,1774809042769,-500.0,0.00013698,2]
[419047163,1774809042780,-500.0,0.00013698,2]
[419047164,1774809042790,-500.0,0.00013698,2]
[419047165,1774809042800,-500.0,0.00013698,2]
[419047166,1774809042811,-500.0,0.00013698,2]
[419047167,1774809042820,-500.0,0.00013698,2]
[419047168,1774809042831,-500.0,0.00013698,2]
[419047169,1774809042841,-500.0,0.00013698,2]
[419047170,1774809042851,-500.0,0.00013698,2]
[419047171,1774809042861,-500.0,0.00013698,2]
[419047172,1774809042871,-500.0,0.00013698,2]
[419047173,1774809042881,-500.0,0.00013698,2]
[419047174,1774809042891,-500.0,0.00013698,2]
[419047175,1774809042901,-500.0,0.00013698,2]
[419047176,1774809042911,-500.0,0.00013698,2]
[419047177,1774809042920,-500.0,0.00013698,2]
[419047178,1774809042930,-500.0,0.00013698,2]
[419047179,1774809042940,-500.0,0.00013698,2]
[419047180,1774809042950,-476.77743701,0.00013698,2]